bitfinex/quotes_BTCUSD_20240902
["timestamp","ask_amount","ask_price","bid_price","bid_amount"]
[1725260758004,0.00648571,57946.0,57945.0,0.1630875]
[1725260758237,0.120794,57950.0,57945.0,0.1630875]
[1725260758468,0.00648571,57946.0,57945.0,0.1630875]
[1725260758715,0.120794,57950.0,57945.0,0.1630875]
[1725260759389,0.00649372,57949.0,57945.0,0.1630875]
[1725260759604,0.00649372,57949.0,57945.0,0.1640875]
[1725260760055,0.00649372,57949.0,57946.0,0.120801]
[1725260760284,0.00649372,57949.0,57947.0,0.04661025]
[1725260764799,0.00730972,57949.0,57947.0,0.16740925]
[1725260765455,0.00730972,57949.0,57947.0,0.04661025]
[1725260768410,0.00730972,57949.0,57947.0,0.05061025]
[1725260769991,0.00730972,57949.0,57947.0,0.06781025]
[1725260771600,0.00730972,57949.0,57948.0,0.05397038]
[1725260772993,0.00730972,57949.0,57948.0,0.05797038]
[1725260774406,0.00730972,57949.0,57948.0,0.004]
[1725260776876,0.03439051,57949.0,57948.0,0.004]
[1725260777283,0.03439051,57949.0,57948.0,0.189997]
[1725260784309,0.03439051,57949.0,57948.0,0.124797]
[1725260784527,0.03439051,57949.0,57948.0,0.004]
[1725260784731,0.03439051,57949.0,57948.0,0.124797]
[1725260789731,0.03439051,57949.0,57948.0,0.004]
[1725260789929,0.03439051,57949.0,57948.0,0.189597]
[1725260790136,0.03439051,57949.0,57948.0,0.25868856]
[1725260793023,0.03627096,57949.0,57948.0,0.25868856]
[1725260794283,0.03620596,57949.0,57948.0,0.25868856]
[1725260798174,0.03620596,57949.0,57948.0,0.50028356]
[1725260799268,0.03620596,57949.0,57948.0,0.49628356]
[1725260799746,0.03620596,57949.0,57948.0,0.50628356]
[1725260799952,0.03620596,57949.0,57948.0,0.437192]
[1725260804708,0.01088161,57949.0,57948.0,0.316395]
[1725260804931,0.0518513,57952.0,57948.0,0.437192]
[1725260805151,0.02708012,57949.0,57948.0,0.437192]
[1725260805371,0.03796173,57949.0,57948.0,0.50688166]
[1725260805796,0.03796173,57949.0,57948.0,0.49688166]
[1725260806205,0.03796173,57949.0,57948.0,0.50388166]
[1725260806415,0.03796173,57949.0,57948.0,0.49688166]
[1725260806826,0.01088161,57949.0,57948.0,0.50688166]
[1725260807225,0.1726393,57953.0,57948.0,0.50688166]
[1725260807442,0.1726393,57953.0,57949.0,0.07665863]
[1725260807654,0.1726393,57953.0,57949.0,0.19745363]
[1725260808244,0.1726393,57953.0,57949.0,0.120795]
[1725260808418,0.0518513,57952.0,57949.0,0.120795]
[1725260809248,0.1726393,57953.0,57949.0,0.120795]
[1725260809456,0.19972119,57952.0,57948.0,0.0698]
[1725260809813,0.19972119,57952.0,57948.0,0.0648]
[1725260810017,0.07893119,57952.0,57949.0,0.007]
[1725260810441,0.07893119,57952.0,57948.0,0.185596]
[1725260810645,0.07893119,57952.0,57949.0,0.120795]
[1725260811094,0.02707989,57952.0,57949.0,0.120795]
[1725260811585,0.07893119,57952.0,57949.0,0.120795]
[1725260812147,0.07893119,57952.0,57949.0,0.1216926]
[1725260812361,0.07893119,57952.0,57949.0,0.1286926]
[1725260812558,0.02707989,57952.0,57949.0,0.1286926]
[1725260813190,0.02707989,57952.0,57949.0,0.17401232]
[1725260813521,0.02707989,57952.0,57951.0,0.0665]
[1725260814821,0.10485685,57952.0,57951.0,0.0665]
[1725260815062,0.02707989,57952.0,57951.0,0.0665]
[1725260815668,0.02707989,57952.0,57951.0,0.0735]
[1725260816262,0.10485685,57952.0,57951.0,0.0735]
[1725260816669,0.10485024,57952.0,57951.0,0.0735]
[1725260817100,0.02707989,57952.0,57951.0,0.0735]
[1725260817304,0.05184619,57954.0,57951.0,0.0735]
[1725260817519,0.02707959,57952.0,57951.0,0.0735]
[1725260817965,0.05184619,57953.0,57951.0,0.25217129]
[1725260818371,0.05184619,57954.0,57952.0,0.0649]
[1725260819533,0.07892549,57954.0,57952.0,0.0649]
[1725260819825,0.07892549,57954.0,57953.0,0.03683886]
[1725260820843,0.07892726,57954.0,57952.0,0.185689]
[1725260821672,0.07892726,57954.0,57952.0,0.0649]
[1725260821850,0.05184796,57953.0,57950.0,0.120793]
[1725260822050,0.05184796,57953.0,57951.0,0.120791]
[1725260822251,0.01091694,57952.0,57951.0,0.120791]
[1725260823462,0.01091694,57952.0,57949.0,0.3050876]
[1725260823708,0.01091694,57952.0,57949.0,0.2920876]
[1725260824027,0.01091694,57952.0,57951.0,0.007]
[1725260824669,0.01191694,57952.0,57951.0,0.013]
[1725260825085,0.01191694,57952.0,57951.0,0.006]
[1725260826237,0.01191694,57952.0,57951.0,0.013]
[1725260826666,0.01191694,57952.0,57951.0,0.03009389]
[1725260827098,0.0637649,57952.0,57951.0,0.03009389]
[1725260828664,0.0637649,57952.0,57951.0,0.013]
[1725260829488,0.01191694,57952.0,57951.0,0.013]
[1725260830123,0.06376987,57952.0,57951.0,0.0761]
[1725260831653,0.0637739,57952.0,57951.0,0.0761]
[1725260832917,0.06377712,57952.0,57951.0,0.0761]
[1725260833359,0.01191694,57952.0,57951.0,0.0761]
[1725260833698,0.01191694,57952.0,57951.0,0.17638902]
[1725260834860,0.06378551,57952.0,57951.0,0.29718002]
[1725260835063,0.06378551,57952.0,57951.0,0.275591]
[1725260835487,0.09086465,57952.0,57951.0,0.275591]
[1725260835994,0.06378551,57952.0,57951.0,0.275591]
[1725260836202,0.06378551,57952.0,57951.0,0.2764886]
[1725260837654,0.0908646,57952.0,57951.0,0.2764886]
[1725260838973,0.0908646,57952.0,57951.0,0.5180716]
[1725260839405,0.0908646,57952.0,57951.0,0.83752038]
[1725260839628,0.03899603,57952.0,57951.0,0.59593738]
[1725260840078,0.03899603,57952.0,57951.0,0.5180716]
[1725260840280,0.0908646,57952.0,57951.0,0.5180716]
[1725260842174,0.03899603,57952.0,57951.0,0.5180716]
[1725260842801,0.09087976,57952.0,57951.0,0.5180716]
[1725260843758,0.09088026,57952.0,57951.0,0.5180716]
[1725260844589,0.09088026,57952.0,57951.0,0.2764886]
[1725260846610,0.09087967,57952.0,57951.0,0.2764886]
[1725260846813,0.09087967,57952.0,57951.0,0.57177908]
[1725260847205,0.03899603,57952.0,57951.0,0.57177908]
[1725260849099,0.03899603,57952.0,57951.0,0.81336208]
[1725260849443,0.03981203,57952.0,57951.0,0.81336208]
[1725260850129,0.02889509,57952.0,57951.0,0.81336208]
[1725260851907,0.01397821,57952.0,57951.0,0.81336208]
[1725260853627,0.001816,57952.0,57951.0,0.81336208]
[1725260853835,0.01397821,57952.0,57951.0,0.81336208]
[1725260854264,0.01397821,57952.0,57951.0,1.40217827]
[1725260854535,0.001816,57952.0,57951.0,1.43517827]
[1725260854761,0.001816,57952.0,57951.0,1.43717827]
[1725260855172,0.001816,57952.0,57951.0,1.48907068]
[1725260855383,0.001816,57952.0,57951.0,1.43717827]
[1725260855821,0.001816,57952.0,57951.0,1.48907068]
[1725260856027,0.000816,57952.0,57951.0,1.42417827]
[1725260856436,0.000816,57952.0,57951.0,1.43817827]
[1725260856642,0.000816,57952.0,57951.0,1.42417827]
[1725260857069,0.000816,57952.0,57951.0,1.43817827]
[1725260857940,0.000816,57952.0,57951.0,1.45217827]
[1725260858569,0.000816,57952.0,57951.0,1.43817827]
[1725260858984,0.000816,57952.0,57951.0,1.43817568]
[1725260859411,0.000816,57952.0,57951.0,1.45217568]
[1725260860088,0.000816,57952.0,57951.0,1.06046189]
[1725260860297,0.000816,57952.0,57951.0,0.7796546]
[1725260860739,0.000816,57952.0,57951.0,0.7746546]
[1725260860971,0.000816,57952.0,57951.0,1.0332376]
[1725260861183,0.000816,57952.0,57951.0,1.04946189]
[1725260861416,0.000816,57952.0,57951.0,1.41152217]
[1725260861668,0.000816,57952.0,57951.0,1.42052217]
[1725260861919,0.000816,57952.0,57951.0,1.40652217]
[1725260862157,0.000816,57952.0,57951.0,1.42052217]
[1725260862353,0.000816,57952.0,57951.0,1.40429788]
[1725260862603,0.000816,57952.0,57951.0,1.41295586]
[1725260862816,0.000816,57952.0,57951.0,1.44095586]
[1725260863015,0.000816,57952.0,57951.0,1.42695586]
[1725260863226,0.000816,57952.0,57951.0,1.66853886]
[1725260863437,0.000816,57952.0,57951.0,1.78253886]
[1725260864122,0.000816,57952.0,57951.0,1.83443127]
[1725260864348,0.000816,57952.0,57951.0,1.76853886]
[1725260864574,0.000816,57952.0,57951.0,1.78253886]
[1725260865056,0.000816,57952.0,57951.0,1.76853886]
[1725260865295,0.000816,57952.0,57951.0,1.75453886]
[1725260865524,0.000816,57952.0,57951.0,1.78253886]
[1725260865766,0.000816,57952.0,57951.0,1.83443127]
[1725260866222,0.000816,57952.0,57951.0,1.81820804]
[1725260866479,0.000816,57952.0,57951.0,1.78253612]
[1725260869361,0.000816,57952.0,57951.0,1.78253594]
[1725260872493,0.000816,57952.0,57951.0,1.76631563]
[1725260872669,0.000816,57952.0,57951.0,1.78253788]
[1725260875713,0.000816,57952.0,57951.0,1.76631563]
[1725260875911,0.000816,57953.0,57952.0,1.104105]
[1725260876260,0.000816,57953.0,57952.0,1.53915664]
[1725260876634,0.000816,57953.0,57952.0,1.78073564]
[1725260876809,0.000816,57953.0,57952.0,1.77873564]
[1725260877045,0.000816,57953.0,57952.0,1.78073564]
[1725260877891,0.000816,57953.0,57952.0,1.79473564]
[1725260878096,0.000816,57953.0,57952.0,1.80873564]
[1725260879047,0.000816,57953.0,57952.0,1.56715664]
[1725260879259,0.000816,57953.0,57952.0,1.65157995]
[1725260879499,0.31889525,57977.0,57974.0,0.120741]
[1725260879709,0.31889525,57977.0,57975.0,0.120741]
[1725260879918,0.36510867,57985.0,57975.0,0.120741]
[1725260879919,0.01421488,57976.0,57975.0,0.120741]
[1725260880391,0.12073,57981.0,57977.0,0.120737]
[1725260880576,0.220731,57980.0,57974.0,0.241485]
[1725260880808,0.2349777,57980.0,57974.0,0.26285903]
[1725260881018,0.2349777,57980.0,57974.0,0.27085903]
[1725260881220,0.2349777,57980.0,57974.0,0.27885903]
[1725260881428,0.2349777,57980.0,57976.0,0.120738]
[1725260882751,0.26204727,57980.0,57976.0,0.124738]
[1725260883457,0.26204727,57980.0,57976.0,0.128738]
[1725260884442,0.14131627,57980.0,57977.0,0.120737]
[1725260884697,0.1,57979.0,57977.0,0.120737]
[1725260885160,0.01423063,57978.0,57977.0,0.120737]
[1725260885783,0.01423063,57978.0,57977.0,0.124737]
[1725260886004,0.01423063,57978.0,57977.0,0.129737]
[1725260886418,0.01423063,57978.0,57977.0,0.120737]
[1725260886629,0.12706957,57980.0,57977.0,0.127737]
[1725260886842,0.12706957,57980.0,57977.0,0.007]
[1725260886843,0.01423065,57978.0,57977.0,0.007]
[1725260887053,0.01423861,57979.0,57977.0,0.007]
[1725260887260,0.01423061,57978.0,57977.0,0.127737]
[1725260887658,0.02788557,57980.0,57977.0,0.127737]
[1725260887902,0.01423061,57978.0,57977.0,0.134737]
[1725260888113,0.12788557,57980.0,57977.0,0.127737]
[1725260888327,0.0116533,57978.0,57977.0,0.007]
[1725260888542,0.12788557,57980.0,57977.0,0.005]
[1725260888756,0.0116533,57978.0,57976.0,0.120738]
[1725260888969,0.12788557,57980.0,57977.0,0.004]
[1725260889177,0.12788557,57980.0,57977.0,0.128736]
[1725260889387,0.12788557,57980.0,57977.0,0.120736]
[1725260889600,0.12788557,57980.0,57977.0,0.007]
[1725260889825,0.02788557,57980.0,57977.0,0.134737]
[1725260890038,0.12788557,57980.0,57977.0,0.127737]
[1725260890869,0.12788557,57980.0,57977.0,0.120737]
[1725260891070,0.02788557,57980.0,57977.0,0.120737]
[1725260891484,0.02788557,57980.0,57977.0,0.124737]
[1725260891911,0.02788557,57980.0,57977.0,0.128737]
[1725260892503,0.02788557,57980.0,57978.0,0.120735]
[1725260894177,0.02788557,57980.0,57977.0,0.128737]
[1725260894380,0.07959316,57980.0,57977.0,0.120737]
[1725260894609,0.07959316,57980.0,57978.0,0.004]
[1725260894963,0.07960602,57980.0,57978.0,0.008]
[1725260895386,0.07960602,57980.0,57978.0,0.004]
[1725260895799,0.07960602,57980.0,57978.0,0.124735]
[1725260896229,0.07960602,57980.0,57979.0,0.13369626]
[1725260896844,0.07963289,57980.0,57979.0,0.13369626]
[1725260897258,0.09131016,57980.0,57979.0,0.37516226]
[1725260897672,0.09131016,57980.0,57979.0,0.120733]
[1725260898318,0.03956284,57980.0,57979.0,0.124733]
[1725260898527,0.03956284,57980.0,57979.0,0.128733]
[1725260900363,0.14308614,57980.0,57979.0,0.128733]
[1725260900584,0.24308614,57980.0,57979.0,0.128733]
[1725260900833,0.24308614,57980.0,57979.0,0.008]
[1725260901070,0.26029384,57980.0,57979.0,0.008]
[1725260901741,0.36392549,57980.0,57979.0,0.008]
[1725260902642,0.26029384,57980.0,57979.0,0.008]
[1725260903085,0.20944368,57980.0,57979.0,0.008]
[1725260903325,0.23651313,57980.0,57979.0,0.008]
[1725260903828,0.11578986,57980.0,57979.0,0.008]
[1725260904076,0.15878001,57980.0,57979.0,0.008]
[1725260905143,0.25878001,57980.0,57979.0,0.008]
[1725260905359,0.33652765,57980.0,57979.0,0.008]
[1725260905577,0.21579665,57980.0,57979.0,0.008]
[1725260906014,0.13804901,57980.0,57979.0,0.02755366]
[1725260906496,0.13804901,57980.0,57979.0,0.008]
[1725260906497,0.21579665,57980.0,57979.0,0.008]
[1725260906730,0.2158295,57980.0,57979.0,0.008]
[1725260907394,0.21583797,57980.0,57979.0,0.008]
[1725260907600,0.13804901,57980.0,57979.0,0.008]
[1725260907849,0.03804901,57980.0,57979.0,0.008]
[1725260909281,0.03804901,57980.0,57978.0,0.120735]
[1725260909637,0.07780364,57979.0,57978.0,0.120735]
[1725260909859,0.17780364,57979.0,57978.0,0.120735]
[1725260910065,0.18877536,57979.0,57978.0,0.120735]
[1725260910735,0.11097172,57979.0,57978.0,0.120735]
[1725260910972,0.08877627,57979.0,57978.0,0.120735]
[1725260911207,0.18877506,57979.0,57978.0,0.120735]
[1725260911414,0.11097172,57979.0,57978.0,0.122735]
[1725260911630,0.18877306,57979.0,57978.0,0.122735]
[1725260911842,0.18877306,57979.0,57978.0,0.120735]
[1725260912044,0.18877306,57979.0,57978.0,0.123735]
[1725260912254,0.18877306,57979.0,57978.0,0.126735]
[1725260913102,0.11097172,57979.0,57978.0,0.126735]
[1725260916662,0.24064395,57979.0,57978.0,0.126735]
[1725260917089,0.11097172,57979.0,57978.0,0.126735]
[1725260917962,0.24064395,57979.0,57978.0,0.006]
[1725260918409,0.24062203,57979.0,57978.0,0.006]
[1725260918873,0.11097172,57979.0,57978.0,0.006]
[1725260919163,0.14062109,57979.0,57978.0,0.006]
[1725260919408,0.24062109,57979.0,57978.0,0.006]
[1725260920281,0.24062372,57979.0,57978.0,0.126735]
[1725260920491,0.11097172,57979.0,57978.0,0.126735]
[1725260923850,0.21468273,57979.0,57978.0,0.126735]
[1725260924066,0.11097172,57979.0,57978.0,0.126735]
[1725260924591,0.21468079,57979.0,57978.0,0.126735]
[1725260925237,0.21467993,57979.0,57978.0,0.126735]
[1725260925486,0.11097172,57979.0,57978.0,0.126735]
[1725260925715,0.11097172,57979.0,57978.0,0.1276326]
[1725260926179,0.24062372,57979.0,57978.0,0.1276326]
[1725260926622,0.11097172,57979.0,57978.0,0.1276326]
[1725260928335,0.2406092,57979.0,57978.0,0.1276326]
[1725260928901,0.23170472,57979.0,57978.0,0.0068976]
[1725260929133,0.75364049,57979.0,57978.0,0.0068976]
[1725260929333,1.47244978,57979.0,57978.0,0.0068976]
[1725260930401,1.71391578,57979.0,57978.0,0.0068976]
[1725260930630,1.67491201,57979.0,57978.0,0.0068976]
[1725260931077,1.67491201,57979.0,57978.0,0.0038976]
[1725260931285,1.67491201,57979.0,57978.0,0.0048976]
[1725260931535,1.67491201,57979.0,57978.0,0.0018976]
[1725260931772,1.67491201,57979.0,57978.0,0.0008976]
[1725260931976,1.67491201,57979.0,57978.0,0.0028976]
[1725260932177,1.67491201,57979.0,57978.0,0.0018976]
[1725260932592,1.67491201,57979.0,57978.0,0.0028976]
[1725260933845,1.43344601,57979.0,57978.0,0.0028976]
[1725260934491,1.11207159,57979.0,57978.0,0.0028976]
[1725260936505,0.95680272,57979.0,57978.0,0.0028976]
[1725260937235,0.93824179,57979.0,57978.0,0.0028976]
[1725260937474,0.94911362,57979.0,57978.0,0.0028976]
[1725260938214,1.05533746,57979.0,57978.0,0.0028976]
[1725260942230,0.93824179,57979.0,57978.0,0.0028976]
[1725260944157,1.17970779,57979.0,57978.0,0.0028976]
[1725260944388,1.19058267,57979.0,57978.0,0.0028976]
[1725260946532,0.69607579,57979.0,57978.0,0.0028976]
[1725260946802,0.69607579,57979.0,57978.0,0.0685976]
[1725260947044,0.77364921,57979.0,57978.0,0.0685976]
[1725260947266,0.69607579,57979.0,57978.0,0.0685976]
[1725260947912,0.79951546,57979.0,57978.0,0.0675976]
[1725260948351,0.69607579,57979.0,57978.0,0.0675976]
[1725260948570,0.79951568,57979.0,57978.0,0.0665976]
[1725260949439,0.55804968,57979.0,57978.0,0.0665976]
[1725260949650,0.23272592,57979.0,57978.0,0.0665976]
[1725260950080,0.3103092,57979.0,57978.0,0.0665976]
[1725260950760,0.5517752,57979.0,57978.0,0.0665976]
[1725260951009,0.47500792,57979.0,57978.0,0.0665976]
[1725260951433,0.33698431,57979.0,57978.0,0.0665976]
[1725260951641,0.47500792,57979.0,57978.0,0.0665976]
[1725260952095,0.50207682,57979.0,57978.0,0.0665976]
[1725260952560,0.26061082,57979.0,57978.0,0.0665976]
[1725260952781,0.33820268,57979.0,57978.0,0.0665976]
[1725260954348,0.26061082,57979.0,57978.0,0.0665976]
[1725260954980,0.13987782,57979.0,57978.0,0.0665976]
[1725260955435,0.21751655,57979.0,57978.0,0.0665976]
[1725260956737,0.33824955,57979.0,57978.0,0.0665976]
[1725260957412,0.26061082,57979.0,57978.0,0.0665976]
[1725260958397,0.25686145,57979.0,57978.0,0.0665976]
[1725260964197,0.3603949,57979.0,57978.0,0.0665976]
[1725260965869,0.6018609,57979.0,57978.0,0.0665976]
[1725260966073,0.49832745,57979.0,57978.0,0.0665976]
[1725260966938,0.49832745,57979.0,57978.0,0.0008976]
[1725260966939,0.73979345,57979.0,57978.0,0.0008976]
[1725260967185,0.98125945,57979.0,57978.0,0.0008976]
[1725260975381,0.73979345,57979.0,57978.0,0.0008976]
[1725260979872,0.73323946,57979.0,57978.0,0.0008976]
[1725260980152,0.76031027,57979.0,57978.0,0.0008976]
[1725260982000,0.86031027,57979.0,57978.0,0.0008976]
[1725260984389,0.73073581,57979.0,57978.0,0.0008976]
[1725260985031,0.86032626,57979.0,57978.0,0.0008976]
[1725260986729,0.86114226,57979.0,57978.0,0.0008976]
[1725260987786,0.73155181,57979.0,57978.0,0.0008976]
[1725260987962,0.86115112,57979.0,57978.0,0.0008976]
[1725260989232,0.83408031,57979.0,57978.0,0.0008976]
[1725260989865,0.704481,57979.0,57978.0,0.0008976]
[1725260992518,0.73155132,57979.0,57978.0,0.0008976]
[1725260994637,1.34741809,57979.0,57978.0,0.0008976]
[1725260994844,0.125739,57976.0,57975.0,0.0008976]
[1725260995082,0.57464131,57976.0,57975.0,0.0008976]
[1725260995303,0.44672231,57963.0,57962.0,0.0626]
[1725260995602,0.54672231,57963.0,57962.0,0.0626]
[1725260995833,0.78825531,57963.0,57962.0,0.0626]
[1725260996059,0.81533112,57963.0,57962.0,0.0626]
[1725260996280,0.362317,57960.0,57959.0,0.14]
[1725260996522,0.57628234,57960.0,57959.0,0.14]
[1725260996961,0.81782734,57960.0,57959.0,0.14]
[1725260997375,0.81782177,57960.0,57959.0,0.14]
[1725260997590,0.81782177,57960.0,57959.0,0.149]
[1725260998247,0.68828531,57960.0,57959.0,0.149]
[1725260998455,0.12953646,57961.0,57960.0,0.0633]
[1725260998668,0.22077,57961.0,57960.0,0.1465]
[1725260999084,0.1,57961.0,57960.0,0.1465]
[1725260999292,0.1,57961.0,57960.0,0.1455]
[1725260999529,0.15179808,57961.0,57960.0,0.1455]
[1725260999741,0.15379808,57961.0,57960.0,0.1645]
[1725261000180,0.464311,57961.0,57960.0,0.1645]
[1725261000390,0.62642989,57961.0,57960.0,0.1645]
[1725261000812,0.86797089,57961.0,57960.0,0.1645]
[1725261001022,0.79027531,57961.0,57960.0,0.1645]
[1725261001428,0.54873431,57961.0,57960.0,0.1645]
[1725261001793,0.5758106,57961.0,57960.0,0.1645]
[1725261002062,0.65347934,57961.0,57960.0,0.1645]
[1725261003209,0.5758106,57961.0,57960.0,0.1645]
[1725261004100,0.8173516,57961.0,57960.0,0.019]
[1725261004565,0.86229664,57961.0,57960.0,0.019]
[1725261004784,0.8173516,57961.0,57960.0,0.019]
[1725261005454,0.92082949,57961.0,57960.0,0.019]
[1725261005699,0.362337,57957.0,57956.0,0.0608]
[1725261005938,0.59849915,57957.0,57956.0,0.0608]
[1725261006371,0.23616215,57957.0,57956.0,0.0608]
[1725261006614,0.23616215,57957.0,57956.0,0.260081]
[1725261006847,0.18442331,57957.0,57956.0,0.260081]
[1725261007049,0.18742331,57957.0,57956.0,0.260081]
[1725261007826,0.09042331,57957.0,57956.0,0.260081]
[1725261009912,0.09042331,57957.0,57956.0,0.2609786]
[1725261011376,0.09042331,57957.0,57956.0,0.1401976]
[1725261011527,0.09042331,57957.0,57956.0,0.2609786]
[1725261012189,0.09042331,57957.0,57956.0,0.1401976]
[1725261012391,0.09042331,57957.0,57956.0,0.0008976]
[1725261012392,0.53915867,57957.0,57956.0,0.0008976]
[1725261012596,0.60447891,57957.0,57956.0,0.0671976]
[1725261013210,0.36292091,57957.0,57956.0,0.0671976]
[1725261013420,0.31120231,57957.0,57956.0,0.0671976]
[1725261015157,0.226779,57957.0,57956.0,0.0671976]
[1725261015579,0.106,57957.0,57956.0,0.1422976]
[1725261015790,0.006,57957.0,57956.0,0.1422976]
[1725261016000,0.006,57957.0,57956.0,0.2630786]
[1725261020499,0.03307775,57957.0,57956.0,0.2630786]
[1725261022798,0.03307775,57957.0,57956.0,0.1422976]
[1725261023013,0.26868933,57957.0,57956.0,0.0008976]
[1725261023468,0.61024733,57957.0,57956.0,0.0008976]
[1725261023690,0.30553957,57957.0,57956.0,0.0008976]
[1725261023921,0.30553944,57957.0,57956.0,0.0008976]
[1725261025794,0.30553944,57957.0,57956.0,0.0611976]
[1725261026919,0.27846169,57957.0,57956.0,0.0611976]
[1725261027143,0.27846691,57957.0,57956.0,0.0611976]
[1725261027405,0.15768791,57957.0,57956.0,0.1370976]
[1725261028476,0.15768791,57957.0,57956.0,0.2578786]
[1725261028712,0.18476541,57957.0,57956.0,0.2578786]
[1725261030531,0.1330775,57957.0,57956.0,0.2578786]
[1725261031602,0.1330775,57957.0,57956.0,0.1370976]
[1725261032034,0.14849246,57957.0,57956.0,0.1370976]
[1725261032336,0.22602432,57957.0,57956.0,0.1370976]
[1725261033431,0.06772393,57957.0,57956.0,0.1370976]
[1725261033839,0.09480173,57957.0,57956.0,0.1370976]
[1725261034296,0.04307178,57957.0,57956.0,0.1370976]
[1725261034531,0.09480173,57957.0,57956.0,0.1370976]
[1725261035182,0.45713873,57957.0,57956.0,0.0008976]
[1725261035398,0.40540878,57957.0,57956.0,0.0008976]
[1725261035608,0.64696678,57957.0,57956.0,0.0008976]
[1725261035821,0.74696678,57957.0,57956.0,0.0008976]
[1725261036044,0.71496759,57957.0,57956.0,0.0008976]
[1725261036499,0.47340959,57957.0,57956.0,0.0008976]
[1725261037677,0.55100451,57957.0,57956.0,0.0008976]
[1725261038107,0.55107765,57957.0,57956.0,0.0008976]
[1725261038598,0.47340959,57957.0,57956.0,0.0008976]
[1725261039649,0.50048795,57957.0,57956.0,0.0008976]
[1725261039890,0.25892995,57957.0,57956.0,0.0008976]
[1725261040373,0.38859962,57957.0,57956.0,0.0008976]
[1725261042806,0.38859702,57957.0,57956.0,0.0008976]
[1725261043039,0.46021725,57957.0,57956.0,0.0008976]
[1725261043278,1.02375818,57957.0,57956.0,0.0008976]
[1725261043490,0.46279131,57952.0,57951.0,0.0008976]
[1725261043706,0.46279131,57952.0,57935.0,0.0008976]
[1725261043707,0.362467,57936.0,57935.0,0.0008976]
[1725261043942,0.604112,57936.0,57935.0,0.0008976]
[1725261044164,0.84468376,57936.0,57935.0,0.0008976]
[1725261044382,0.60303876,57936.0,57935.0,0.0008976]
[1725261044590,0.3624828,57936.0,57935.0,0.0008976]
[1725261044812,0.6041278,57936.0,57935.0,0.0008976]
[1725261045316,0.6041278,57936.0,57935.0,0.0018976]
[1725261045554,0.50056209,57936.0,57935.0,0.0018976]
[1725261045975,0.6081278,57936.0,57935.0,0.0018976]
[1725261046398,0.50456209,57936.0,57935.0,0.0018976]
[1725261046650,0.50456209,57936.0,57935.0,0.0008976]
[1725261046651,0.74620709,57936.0,57935.0,0.0008976]
[1725261047064,0.74920709,57936.0,57935.0,0.0008976]
[1725261047501,0.8267776,57936.0,57935.0,0.0008976]
[1725261049484,0.74920709,57936.0,57935.0,0.0008976]
[1725261050518,0.80087583,57936.0,57935.0,0.0008976]
[1725261051821,0.800861,57936.0,57935.0,0.0008976]
[1725261052010,0.54878498,57936.0,57935.0,0.0008976]
[1725261052226,0.54878498,57936.0,57935.0,0.35174591]
[1725261052227,0.02301357,57936.0,57935.0,0.35174591]
[1725261052440,0.007,57936.0,57935.0,1.1118705]
[1725261052652,0.007,57936.0,57935.0,0.8702205]
[1725261053319,0.004,57936.0,57935.0,0.8702205]
[1725261053540,0.004,57936.0,57935.0,0.78379719]
[1725261053765,0.004,57936.0,57935.0,0.83704591]
[1725261054234,0.120803,57946.0,57940.0,0.120812]
[1725261054487,0.120803,57946.0,57941.0,0.1372]
[1725261054731,0.120809,57943.0,57941.0,0.1372]
[1725261055179,0.120807,57944.0,57941.0,0.1372]
[1725261055398,0.1,57943.0,57941.0,0.1372]
[1725261055623,0.12708445,57943.0,57941.0,0.1372]
[1725261056775,0.12708445,57943.0,57941.0,0.1382]
[1725261057227,0.12708445,57943.0,57941.0,0.1372]
[1725261057430,0.13208445,57943.0,57941.0,0.1382]
[1725261057843,0.03208445,57943.0,57941.0,0.1382]
[1725261058340,0.03208445,57943.0,57942.0,0.18251]
[1725261058555,0.005,57943.0,57942.0,0.50033]
[1725261059427,0.011,57943.0,57942.0,0.74195]
[1725261059900,0.1,57948.0,57947.0,0.2631]
[1725261060120,0.1,57948.0,57947.0,0.3025706]
[1725261060345,0.1,57952.0,57949.0,0.0644]
[1725261060802,0.00758658,57951.0,57949.0,0.0644]
[1725261061656,0.00758658,57951.0,57949.0,0.0534]
[1725261062533,0.04866779,57951.0,57949.0,0.0534]
[1725261063188,0.04866779,57951.0,57950.0,0.0252099]
[1725261063625,0.14866779,57951.0,57950.0,0.0252099]
[1725261064088,0.16266779,57951.0,57950.0,0.0252099]
[1725261064326,0.16266779,57951.0,57950.0,0.2223029]
[1725261064632,0.04866779,57951.0,57950.0,0.2223029]
[1725261064851,0.03866779,57951.0,57950.0,0.1384]
[1725261065058,0.15945879,57951.0,57950.0,0.1384]
[1725261065281,0.01158658,57951.0,57950.0,0.1384]
[1725261065718,0.00758658,57951.0,57950.0,0.1374]
[1725261066243,0.02558658,57951.0,57950.0,0.1394]
[1725261066586,0.01158658,57951.0,57950.0,0.1384]
[1725261067022,0.02058658,57951.0,57950.0,0.1394]
[1725261072559,0.02140258,57951.0,57950.0,0.1394]
[1725261074701,0.02140258,57951.0,57950.0,0.7935459]
[1725261074937,0.02140258,57951.0,57950.0,0.50178]
[1725261075142,0.04848154,57951.0,57950.0,0.50178]
[1725261075778,0.04848154,57951.0,57950.0,0.743367]
[1725261076848,0.02140258,57951.0,57950.0,0.743367]
[1725261077275,0.02140258,57951.0,57950.0,0.8177037]
[1725261078525,0.013816,57951.0,57950.0,0.8177037]
[1725261080098,0.013816,57951.0,57950.0,0.90199582]
[1725261082960,0.013816,57951.0,57950.0,1.14358282]
[1725261084265,0.013816,57951.0,57950.0,1.14558282]
[1725261084930,0.004816,57951.0,57950.0,1.14458282]
[1725261085371,0.004816,57951.0,57950.0,1.14858282]
[1725261085583,0.004816,57951.0,57950.0,1.14658282]
[1725261085789,0.000816,57951.0,57950.0,1.14558282]
[1725261086208,0.000816,57951.0,57950.0,1.15258282]
[1725261087945,0.000816,57951.0,57950.0,1.15058282]
[1725261088154,0.000816,57951.0,57950.0,1.07624612]
[1725261089039,0.000816,57951.0,57950.0,1.07824612]
[1725261090716,0.000816,57951.0,57950.0,0.750367]
[1725261091171,0.20589912,57951.0,57950.0,0.009]
[1725261091427,0.51575146,57951.0,57950.0,0.009]
[1725261091661,0.6242429,57951.0,57950.0,0.009]
[1725261091887,0.95964212,57951.0,57950.0,0.009]
[1725261092102,0.95965324,57951.0,57950.0,0.005]
[1725261092316,0.62425402,57951.0,57950.0,0.005]
[1725261092529,0.65209469,57951.0,57950.0,0.005]
[1725261092738,0.81415656,57951.0,57950.0,0.005]
[1725261092952,1.01791841,57951.0,57950.0,0.005]